Workbook

Sheet Properties and Data
A2: Density and Specific Heat
A3: Property | B3: Raw PO | C3: Methanol | D3: Stabilized PO | E3: H2 | F3: DOW | G3: MoS2 | H3: Unit
A4: Density | B4: 1200 | C4: 792 | D4: =B4*0.85+C4*0.15 -> 1138.8 | E4: 0.0899 | G4: 4692 | H4: kg/m3
A5: Cp | B5: ='Cp calculations'!E12 -> 2302.073632 | C5: 2481.273408 | D5: =B5*0.85+C5*0.15 -> 2328.953598 | E5: 14400 | F5: ='Properties and Data'!B61 -> 2245.285714 | H5: J/kg/°C
A7: Prices
A8: Item | B8: Cost | C8: Unit
A9: PO | B9: 6000 | C9: SEK/t
A10: Methanol fossil | B10: =625*B37 -> 7143.75 | C10: SEK/t
A11: Methanol green | B11: =1193*B37 -> 13635.99 | C11: SEK/t
A12: Catalyst | B12: =2*B36*1000 -> 21120 | C12: SEK/t
A13: Electricity | B13: 386 | C13: SEK/MWh
A14: H2 from SMR | B14: =3.76*B37*1000 -> 42976.8 | C14: SEK/t
A15: H2 from electrolysis | B15: =6*B36*1000 -> 63360 | C15: SEK/t
A16: H2 from slurry | B16: =(3.76-2.81)*'Properties and Data'!B37*1000 -> 10858.5 | C16: SEK/t
A17: Natural gas | B17: =B68*1000 -> 5751.576 | C17: SEK/t
A18: Biogas | B18: =16*1000 -> 16000 | C18: SEK/t
A19: Cooling water | B19: 0.2 | C19: SEK/t
A20: Dowtherm | B20: =B48 -> 281463.3143 | C20: SEK/t
A21: Monthly salary shift worker | B21: 30000 | C21: SEK/worker
A23: Cost related data
A24: Operational days | B24: 340
A25: CEPCI 2024 | B25: 798
A26: CEPCI 2004 | B26: 457.4
A27: Conversion (2024/2004) | B27: =B25/B26 -> 1.744643638 | C27: https://www.chemengonline.com/pci-home
A28: Fees & contingency | B28: 1.15 | C28: https://www.exchangerates.org.uk/USD-SEK-spot-exchange-rates-history-2024.html
A29: Fauxilairy facilities | B29: 1.25
A30: § | B30: 0.15
A31: Plant life N (years) | B31: 15
A32: Annuitiy factor fA | B32: 0.1710170526
A33: Discount factor fd | B33: =1/B32 -> 5.8473701
A35: Conversions
A36: $ to SEK | B36: 10.56
A37: € to SEK | B37: 11.43
A38: gallon to m3 | B38: 0.00378541178
A40: Dowtherm price calculations
A41: Property | B41: Value | C41: Unit
A42: Price | B42: 5860 | C42: $/barrel
A43: Volume | B43: 55 | C43: gallon/barrel
B44: =B43*B38 -> 0.2081976479 | C44: m3/barrel
A45: Density | B45: 1056 | C45: kg/m3
A46: Weigth | B46: =B44*B45 -> 219.8567162 | C46: kg/barrel
A47: Price | B47: =B42/B46*1000 -> 26653.72294 | C47: $/t
B48: =B47*B36 -> 281463.3143 | C48: SEK/t
A50: Dowtherm Cp calculations
A51: Temperature | B51: Specific heat (J/kg/°C)
A52: 15 | B52: 1558
A53: 65 | B53: 1701
A54: 105 | B54: 1814
A55: 155 | B55: 1954
A56: 205 | B56: 2093
A57: 255 | B57: 2231
A58: 305 | B58: 2373
A59: 355 | B59: 2527
A60: 405 | B60: 2725
A61: Avg 105-350 °C | B61: =AVERAGE(B54:B60) -> 2245.285714
A63: Natural gas calculation
A64: Property | B64: Value | C64: Unit
A65: Price | B65: 37 | C65: €/MWh
A66: Conversion | B66: =13.6/1000 -> 0.0136 | C66: MWh/kg
A67: Euro per kg | B67: =B65*B66 -> 0.5032 | C67: €/kg
A68: SEK per kg | B68: =B67*B37 -> 5.751576 | C68: SEK/kg
A69: Energy content | B69: 13.6 | C69: kWh/kg

Sheet Cp calculations
A1: Cp of PO
A2: Group | B2: Compound | C2: Wt% (dry basis) | D2: Wt% (wet basis) | E2: Cp (25°C) [J/kg/°C]
A3: Carboxylic acids | B3: Acetic acid | C3: 28 | D3: 22.4 | E3: 2051.666667
A4: Phenol | B4: Guaiacol | C4: 21 | D4: 16 | E4: 1849.673729
A5: Esters | B5: Ethyl Acetate | C5: 14 | D5: 11.2 | E5: 1289.897843
A6: Ketones | B6: Acetone | C6: 12 | D6: 9.6 | E6: 2159.951791
A7: Alcohols | B7: Ethanol | C7: 8 | D7: 6.4 | E7: 2439.85031
A8: Sugars | B8: Levoglucosan | C8: 9 | D8: 7.2 | E8: 1154.55779
A9: Aldehydes | B9: Benzaldehyde | C9: 5 | D9: 4 | E9: 1620.777615
A10: Furans | B10: Furfural | C10: 4 | D10: 3.2 | E10: 1694.340196
A11: water | B11: H2O | C11: 0 | D11: 20 | E11: 4182
D12: Total Cp | E12: =(D3*E3+D4*E4+D5*E5+D6*E6+D7*E7+D8*E8+D9*E9+D10*E10+D11*E11)/100 -> 2302.073632

Sheet Stabilization
A2: OPERATIONAL COSTS
A4: Feedstock | B4: Annual requirement [t/y] | C4: Cost per tonne [SEK/tonne] | D4: Annual cost [SEK/y] | E4: Cost per tonne GREEN [SEK/t] | F4: Annual cost Green [SEK/y]
A5: Raw pyrolysis oil | B5: =B12*24*'Properties and Data'!B24 -> 408000 | C5: ='Properties and Data'!B9 -> 6000 | D5: =B5*C5 -> 2448000000 | E5: =Table49[[#This Row],[Cost per tonne '[SEK/tonne']]] -> 6000 | F5: =Table49[[#This Row],[Annual requirement '[t/y']]]*Table49[[#This Row],[Cost per tonne GREEN '[SEK/t']]] -> 2448000000
A6: Methanol | B6: =C12*24*'Properties and Data'!B24 -> 72000 | C6: ='Properties and Data'!B10 -> 7143.75 | D6: =B6*C6 -> 514350000 | E6: ='Properties and Data'!B11 -> 13635.99 | F6: =Table49[[#This Row],[Annual requirement '[t/y']]]*Table49[[#This Row],[Cost per tonne GREEN '[SEK/t']]] -> 981791280
B7: Total costs raw material, reactants & catalyst | D7: =SUM(D2:D6) -> 2962350000 | F7: =SUM(Table49[Annual cost Green '[SEK/y']]) -> 3429791280
A9: CALCULATIONS
A10: Specifications and calculations
A11: Property | B11: PO | C11: Methanol | D11: Stabilized oil | E11: Unit
A12: Mass flow | B12: 50 | C12: =B12/(1-C13/100)-B12 -> 8.823529412 | D12: =B12+C12 -> 58.82352941 | E12: t/h
A13: Percentage in stabilized oil | B13: 85 | C13: 15 | E13: wt%

Sheet Storage and transportation
A2: CAPITAL COSTS
A3: Equipment
A4: Item | B4: Type [-] | C4: Material [-] | D4: Temperature [°C] | E4: Pressure [bar] | F4: Volume [m3] | G4: Fbm [-] | H4: Cp [$2004] | I4: Cbm [$2004]
A5: Storage tank | B5: Process vessel, vertical | C5: Stainless steel | D5: 25 | E5: 1 | F5: =B34 -> 17355.73049 | G5: 3.5 | H5: 60000 | I5: =G5*H5 -> 210000
A6: Storage tank | B6: Process vessel, vertical | C6: Stainless steel | D6: 25 | E6: 1 | F6: =F5 -> 17355.73049 | G6: =G5 -> 3.5 | H6: 60000 | I6: =G6*H6 -> 210000
G7: Total costs | H7: =SUM(Table63[Cp '[$2004']]) -> 120000 | I7: =SUM(Table63[Cbm '[$2004']]) -> 420000
A9: OPERATIONAL COSTS
A11: Utilities
A12: Utility | B12: Annual requirement [MWh/y] | C12: Cost [SEK/MWh] | D12: Annual cost [SEK/y]
A13: Electricity for heating | B13: =B47+B87 -> 3047.268476 | C13: ='Properties and Data'!B13 -> 386 | D13: =B13*C13 -> 1176245.632
A15: Transportation
A16: Transportation | B16: Annual requirement [t/y] | C16: Cost [SEK/t] | D16: Annual cost [SEK/y]
A17: Ship | B17: =B57 -> 480000 | C17: =B58 -> 633.6 | D17: =B17*C17 -> 304128000
A21: CALCULATIONS
A23: Storage at pyrolysis-site
A24: Storing while waiting for transportation to refinery
A26: Storage tank
A28: Specifications and calculations
A29: Property | B29: Value | C29: Unit
A30: Oil produced daily | B30: =Stabilization!D12*24 -> 1411.764706 | C30: t/d
A31: Days capacity | B31: 14 | C31: d
A32: Required storage capacity | B32: =B30*1000*B31/'Properties and Data'!D4 -> 17355.73049 | C32: m3
A33: Number of storage tanks | B33: 1 | C33: units
A34: Volume of tanks | B34: =B32 -> 17355.73049 | C34: m3
A35: H/D | B35: 1.5 | C35: -
A36: Height | B36: =B37*B35 -> 36.77154222 | C36: m
A37: Diameter | B37: =((4*B34)/(PI()*B35))^(1/3) -> 24.51436148 | C37: m
A38: Surface Area | B38: =PI()*B37*B36+PI()*(B37/2)^2 -> 3303.916728 | C38: m2
A39: Heat transfer coefficient | B39: 2.1 | C39: W/m2/°C
A40: Temperature | B40: 25 | C40: °C
A42: Heating
A43: Property | B43: Value | C43: Unit
A44: Days needing heating | B44: 183 | C44: d
A45: Liquid temperature | B45: 25 | C45: °C
A46: Outside temperature | B46: 0 | C46: °C
A47: Energy demand yearly | B47: =B39*B38*(B45-B46)*2*24*B44/(10^6) -> 1523.634238 | C47: MWh/y
A50: Transportation to refinery
A51: Transportation by boat to refinery
A53: Shipping
A55: Specifications and calculations
A56: Property | B56: Value | C56: Unit
A57: Annual production | B57: =Stabilization!D12*24*'Properties and Data'!B24 -> 480000 | C57: t/y
A58: Price per tonne | B58: =(45+15)*'Properties and Data'!B36 -> 633.6 | C58: SEK/t
A59: Annual transportation cost | B59: =B57*B58 -> 304128000 | C59: SEK/y
A62: Storage at pyrolysis-site
A63: Storing while waiting for transportation to refinery
A65: Storage tank
A67: Specifications and calculations
A68: Property | B68: Value | C68: Unit
A69: Oil processed daily | B69: =Stabilization!D12*24 -> 1411.764706 | C69: t/d
A70: Oil processed weekly | B70: =B69*7 -> 9882.352941 | C70: t/w
A71: Days of inventory | B71: 14 | C71: d
A72: Required storage capacity | B72: =B69*1000*B71/'Properties and Data'!D4 -> 17355.73049 | C72: m3
A73: Number of storage tanks | B73: 1 | C73: units
A74: Volume of tanks | B74: =B72 -> 17355.73049 | C74: m3
A75: H/D | B75: 1.5 | C75: -
A76: Height | B76: =B77*B75 -> 36.77154222 | C76: m
A77: Diameter | B77: =((4*B74)/(PI()*B75))^(1/3) -> 24.51436148 | C77: m
A78: Surface Area | B78: =PI()*B77*B76+PI()*(B77/2)^2 -> 3303.916728 | C78: m2
A79: Heat transfer coefficient | B79: 2.1 | C79: W/m2/°C
A80: Temperature | B80: 25 | C80: °C
A82: Heating
A83: Property | B83: Value | C83: Unit
A84: Days needing heating | B84: 183 | C84: d
A85: Liquid temperature | B85: 25 | C85: °C
A86: Outside temperature | B86: 0 | C86: °C
A87: Energy demand yearly | B87: =B79*B78*(B85-B86)*2*24*B84/(10^6) -> 1523.634238 | C87: MWh/y

Sheet Slurry hydrotreatment
A2: CAPITAL COSTS
A3: Equipment
A5: Item | B5: Type | C5: Material | D5: Temperature [°C] | E5: Pressure [bar] | F5: Residence time [h] | G5: Volumetric feed rate [m3/h] | H5: Volume [m3] | I5: H/D [-] | J5: Height [m] | K5: Diameter [m] | L5: Heat exchanger area [m2] | M5: Fp [-] | N5: Fm [-] | O5: Fbm [-] | P5: Cp [$2004] | Q5: Cbm [$2004]
A6: HEX1 | B6: Shell and tube | C6: SS | D6: =$B$61 -> 121.8864833 | E6: 1 | L6: =$B$69 -> 522.546133 | M6: 1 | N6: 1.7 | O6: 4 | P6: 35000 | Q6: =P6*O6 -> 140000
A7: Gas heater | B7: Indirect fired non-reactive | C7: SS | D7: =$B$90 -> 400 | E7: 1 | M7: 1 | O7: 2.7 | P7: =1.3*10^6 -> 1300000 | Q7: =P7*O7*M7 -> 3510000
A8: Slurry reactor | B8: Process vessel, vertical | C8: SS | D8: 400 | E8: 100 | F8: 1 | H8: =$B$107 -> 74.58831794 | I8: 3 | J8: =K8*I8 -> 9.490180671 | K8: =((4*H8)/(PI()*I8))^(1/3) -> 3.163393557 | M8: 5 | N8: 4 | O8: 40 | P8: =5.5*10^4 -> 55000 | Q8: =O8*P8 -> 2200000
A9: HEX 2 | B9: Shell and tube | C9: SS | D9: =$C$173 -> 202.2724831 | E9: 100 | L9: =$B$181 -> 1262.521578 | M9: 1.1 | N9: 1.7 | O9: 4.5 | P9: =6*10^4 -> 60000 | Q9: =P9*O9 -> 270000
A10: HEX 3 | B10: Shell and tube | C10: SS | D10: =$C$200 -> 100 | E10: 100 | L10: =$B$208 -> 519.4679419 | M10: 1.1 | N10: 1.7 | O10: 4.5 | P10: 35000 | Q10: =P10*O10 -> 157500
A11: Flash | B11: Process vessel, horizontal | C11: SS | D11: 100 | E11: 1 | H11: =$B$238 -> 3.23042015 | I11: 3 | J11: =K11*I11 -> 3.332758767 | K11: =((4*H11)/(PI()*I11))^(1/3) -> 1.110919589 | M11: 1 | N11: 4 | O11: 8.5 | P11: =5*10^3 -> 5000 | Q11: =O11*P11 -> 42500
A12: Sedimentation disk centrifuge | B12: Sedimentation disk centrifuge | D12: 100 | E12: 1 | G12: =$B$273 -> 0.008842735267 | O12: 3.4 | P12: 180000 | Q12: =P12*O12 -> 612000
A13: Decanter | B13: Process vessel, horizontal | C13: SS | D13: 100 | E13: 1 | F13: 0.1 | H13: =$B$288 -> 9.67264303 | I13: 3 | J13: =K13*I13 -> 4.803589972 | K13: =((4*H13)/(PI()*I13))^(1/3) -> 1.601196657 | M13: 1 | N13: 4 | O13: 8.5 | P13: 10000 | Q13: =O13*P13 -> 85000
O14: Total cost | P14: =SUM(P6:P12) -> 1670000 | Q14: =SUM(Q6:Q12) -> 6932000
A18: OPERATIONAL COSTS
A20: Utilities | C20: Fossil | E20: Green
A21: Property | B21: Annual requirement [t/y] | C21: Cost [SEK/t] | D21: Yearly cost [SEK/y] | E21: Cost green [SEK/t] | F21: Yearly cost green [SEK/y]
A22: Methane (for heating) | B22: =B98+C98 -> 18101.21228 | C22: ='Properties and Data'!B17 -> 5751.576 | D22: =B22*C22 -> 104110498.1 | E22: ='Properties and Data'!B18 -> 16000 | F22: =B22*E22 -> 289619396.5
A23: Cooling water | B23: =B213 -> 866137.6998 | C23: ='Properties and Data'!B19 -> 0.2 | D23: =B23*C23 -> 173227.54 | E23: =C23 -> 0.2 | F23: =E23*B23 -> 173227.54
B24: Total costs utilities | D24: =SUM(Table43[Yearly cost '[SEK/y']]) -> 104283725.7 | F24: =SUM(Table43[Yearly cost green '[SEK/y']]) -> 289792624.1
A26: Raw material, reactants, catalyst
A27: Feedstock | B27: Annual requirement [t/y] | C27: Cost per tonne [SEK/tonne] | D27: Annual cost [SEK/y] | E27: Cost per tonne [SEK/tonne]2 | F27: Annual cost [SEK/y]2
A28: Hydrogen from slurry CH4 | B28: =B139 -> 15600 | C28: ='Properties and Data'!B16 -> 10858.5 | D28: =Table445[[#This Row],[Annual requirement '[t/y']]]*Table445[[#This Row],[Cost per tonne '[SEK/tonne']]] -> 169392600 | E28: =Table445[[#This Row],[Cost per tonne '[SEK/tonne']]] -> 10858.5 | F28: =Table445[[#This Row],[Annual cost '[SEK/y']]] -> 169392600
A29: Hydrogen from other source | B29: =B141 -> 2640 | C29: ='Properties and Data'!B14 -> 42976.8 | D29: =Table445[[#This Row],[Annual requirement '[t/y']]]*Table445[[#This Row],[Cost per tonne '[SEK/tonne']]] -> 113458752 | E29: ='Properties and Data'!B15 -> 63360 | F29: =Table445[[#This Row],[Annual requirement '[t/y']]]*Table445[[#This Row],[Cost per tonne '[SEK/tonne']2]] -> 167270400
A30: Catalyst | B30: =B150 -> 15840 | C30: ='Properties and Data'!B12 -> 21120 | D30: =Table445[[#This Row],[Annual requirement '[t/y']]]*Table445[[#This Row],[Cost per tonne '[SEK/tonne']]] -> 334540800 | E30: =Table445[[#This Row],[Cost per tonne '[SEK/tonne']]] -> 21120 | F30: =Table445[[#This Row],[Annual cost '[SEK/y']]] -> 334540800
B31: Total costs raw material, reactants & catalyst | D31: =SUM(Table445[Annual cost '[SEK/y']]) -> 617392152 | F31: =SUM(F28:F30) -> 671203800
A33: Electricity
A34: Unit | B34: Annual requirement [MWh/y] | C34: Cost per MWh [SEK/MWh] | D34: Annual cost [SEK/y]
A35: Sedimentation disc centrifuge | B35: =B275 -> 216.4701593 | C35: ='Properties and Data'!B13 -> 386 | D35: =B35*C35 -> 83557.4815
B36: Total costs electricity | D36: =SUM(Table45[Annual cost '[SEK/y']]) -> 83557.4815
A38: Irregular costs
A39: Item | B39: Cost [SEK] | C39: Frequency (every x years) | D39: Number of times during lifetime | E39: Avg cost/year [SEK/y]
A40: Thermal oil | B40: =B76 -> 13172483.11 | C40: 5 | D40: =$B$96/C40+1 -> 3.72 | E40: =B40*D40/$B$96 -> 3603061.556
D41: Total irregular costs | E41: =SUM(Table251[Avg cost/year '[SEK/y']]) -> 3603061.556
A43: CALCULATIONS
A44: Heating
A45: Heating to process temperature
A47: Heat exchanger 1
A49: Mass balance
A50: Component | B50: In [t/h] | C50: Out [t/h]
A51: Stabilized PO | B51: =Stabilization!D12 -> 58.82352941 | C51: =B51 -> 58.82352941
A52: Catalyst | B52: =B147 -> 19.41176471 | C52: =B52 -> 19.41176471
A53: Total | B53: =SUM(B51:B52) -> 78.23529412 | C53: =SUM(C51:C52) -> 78.23529412
A56: Energy balance
A57: Property | B57: Cold side (PO) | C57: Warm side (DOW) | D57: Unit
A58: Cp | B58: ='Properties and Data'!$D$5 -> 2328.953598 | C58: ='Properties and Data'!$F$5 -> 2245.285714 | D58: J/kg/°C
A59: Efficiency | B59: 0.7 | C59: 0.7 | D59: -
A60: T in | B60: 25 | C60: =B173 -> 340 | D60: °C
A61: T out | B61: =B60+B67/(B58*B62) -> 121.8864833 | C61: 100 | D61: °C
A62: Mass flow | B62: =C53/3600*1000 -> 21.73202614 | C62: 13 | D62: kg/s
A63: delta T1 | B63: =C60-B61 -> 218.1135167 | D63: °C
A64: delta T2 | B64: =C61-B60 -> 75 | D64: °C
A65: delta Tlm | B65: =(B63-B64)/LN(B63/B64) -> 134.0607266 | D65: °C
A66: U | B66: 100 | D66: W/m2/°C
A67: Q needed to heat (ideal) | B67: =C68*0.7 -> 4903704 | D67: W
A68: Q needed to provide | C68: =C58*C62*(C60-C61) -> 7005291.429 | D68: W
A69: A | B69: =C68/(B66*B65) -> 522.546133 | D69: m2
A71: Thermal oil
A72: Property | B72: Value | C72: Unit
A73: Mass flow hourly | B73: =C62*3600/1000 -> 46.8 | C73: t/h
A74: Amount needed | B74: =B73 -> 46.8 | C74: t
A75: Cost/tonne | B75: ='Properties and Data'!B48 -> 281463.3143 | C75: SEK/t
A76: Total cost | B76: =B74*B75 -> 13172483.11 | C76: SEK
A78: Gas heater
A80: Mass balance
A81: Component | B81: In
A82: Stabilized PO | B82: =C51 -> 58.82352941 | C82: =B82 -> 58.82352941
A83: Catalyst | B83: =C52 -> 19.41176471 | C83: =B83 -> 19.41176471
A84: H2 | B84: =B132 -> 6.705882353 | C84: 6.705882353
A85: Total | B85: =SUM(B82:B84) -> 84.94117647 | C85: =SUM(C82:C84) -> 84.94117647
A87: Energy balance
A88: Property | B88: PO + Catalyst | C88: H2 | D88: Unit
A89: Tin | B89: =B61 -> 121.8864833 | C89: 25 | D89: °C
A90: T out | B90: 400 | C90: 400 | D90: °C
A91: Cp | B91: ='Properties and Data'!D5 -> 2328.953598 | C91: ='Properties and Data'!E5 -> 14400 | D91: J/kg/°C
A92: Mass flow | B92: =B62 -> 21.73202614 | C92: =B132*1000/3600 -> 1.862745098 | D92: kg/s
A93: Efficiency | B93: 0.8 | C93: 0.8 | D93: -
A94: Q needed to heat (ideal) | B94: =B92*B58*(B90-B89) -> 14076126.18 | C94: =C92*C91*(C90-C89) -> 10058823.53 | D94: W
A95: Q needed to provide | B95: =B94/B93 -> 17595157.73 | C95: =C94/C93 -> 12573529.41 | D95: W
A96: Combustion enthalpy CH4 | B96: ='Properties and Data'!B69 -> 13.6 | C96: =B96 -> 13.6 | D96: kWh/kg
A97: Hourly CH4 requirement | B97: =B95/1000/B96 -> 1293.761598 | C97: =C95/1000/C96 -> 924.5242215 | D97: kg/h
A98: Annual CH4 requirement | B98: =B97*24*'Properties and Data'!$B$24/1000 -> 10557.09464 | C98: =C97*24*'Properties and Data'!$B$24/1000 -> 7544.117647 | D98: t/y
A100: Slurry reactor
A101: Mild HDO and stabilization
A103: Specifications and calculations
A104: Parameter | B104: Value | C104: Unit
A105: Residence time | B105: 1 | C105: h
A106: Mass flow | B106: =C85 -> 84.94117647 | C106: t/h
A107: Volume | B107: =B105*B106*1000/'Properties and Data'!D4 -> 74.58831794 | C107: m3
A110: Product distribution
A111: Component | B111: Weight percent of feed [wt%]
A112: HDO oil | B112: 38.4
A113: Water phase | B113: 47.4
A114: Gas (CO+CO2) | B114: 8
A115: Gas (C1-C5) | B115: 8.7
A117: Mass balance
A118: Component | B118: In [t/h] | C118: Out [t/h]
A119: Stabilized PO | B119: =C51 -> 58.82352941
A120: HDO oil | C120: =$B$119*B112/100 -> 22.58823529
A121: Water phase | C121: =$B$119*B113/100 -> 27.88235294
A122: Gas (CO+CO2) | C122: =$B$119*B114/100 -> 4.705882353
A123: Gas (C1-C5) | C123: =$B$119*B115/100 -> 5.117647059
A124: Catalyst | B124: =C52 -> 19.41176471 | C124: =B124 -> 19.41176471
A125: H2 | B125: =C84 -> 6.705882353 | C125: =B125-B131 -> 4.470588235
A126: Total | B126: =SUM(B119:B125) -> 84.94117647 | C126: =SUM(C119:C125) -> 84.17647059
A128: Hydrogen
A129: Property | B129: Value | C129: Unit
A130: Consumption | B130: 0.038 | C130: g/g feed
B131: =B130*C51 -> 2.235294118 | C131: t/h
A132: Supply | B132: =B131*3 -> 6.705882353 | C132: t/h
B133: =B132*1000/'Properties and Data'!E4 -> 74592.68468 | C133: Nm3/h
A134: Natural gas needed to produce H2 | B134: =B131*2 -> 4.470588235 | C134: t/h
A135: Bio-gas yield slurry reactor | B135: 6.5 | C135: wt% of feed
A136: Bio-gas from slurry | B136: =C51*B135/100 -> 3.823529412 | C136: t/h
A137: Natural gas needed from other source | B137: =B134-B136 -> 0.6470588235 | C137: t/h
A138: H2 from slurry bio-gas | B138: =B136/2 -> 1.911764706 | C138: t/h
A139: Annual H2 from slurry bio-gas | B139: =B138*24*'Properties and Data'!B24 -> 15600 | C139: t/y
A140: H2 from other source | B140: =B137/2 -> 0.3235294118 | C140: t/h
A141: Annual H2 from other source | B141: =B140*24*'Properties and Data'!B24 -> 2640 | C141: t/y
A144: Catalyst
A145: Property | B145: Value | C145: Unit
A146: Catalyst / kg feed | B146: 33 | C146: wt% of feed
A147: Catalyst feed rate | B147: =B146*B51/100 -> 19.41176471 | C147: t/h
A148: Make-up rate | B148: 0.1 | C148: -
A149: Catalyst feed rate (fresh) | B149: =B147*B148 -> 1.941176471 | C149: t/h
A150: Annual requirement | B150: =B149*24*'Properties and Data'!B24 -> 15840 | C150: t/y
A153: Cooling
A154: Cooling of slurry mixture
A156: Heat exchanger 2
A158: Mass balance
A159: Component | B159: In [t/h] | C159: Out [t/h]
A160: HDO oil | B160: =C120 -> 22.58823529 | C160: =B160 -> 22.58823529
A161: Water phase | B161: 27.88235294 | C161: =B161 -> 27.88235294
A162: Gas (CO+CO2) | B162: 4.705882353 | C162: 4.705882353
A163: Gas (C1-C5) | B163: 5.117647059 | C163: 5.117647059
A164: Catalyst | B164: 19.41176471 | C164: 19.41176471
A165: H2 | B165: 4.470588235 | C165: 4.470588235
A166: Total | B166: =SUM(B160:B165) -> 84.17647059 | C166: =SUM(C160:C165) -> 84.17647059
A168: Energy balance
A169: Property | B169: Cold side (DOW) | C169: Warm side (PO) | D169: Unit
A170: Cp | B170: =C58 -> 2245.285714 | C170: =B58 -> 2328.953598 | D170: J/kg/°C
A171: Efficiency | B171: 0.7 | C171: 0.7 | D171: -
A172: T in | B172: 100 | C172: 400 | D172: °C
A173: T out | B173: 340 | C173: =C172-C180/(C170*C174) -> 202.2724831 | D173: °C
A174: Mass flow | B174: =C62 -> 13 | C174: =B62 -> 21.73202614 | D174: kg/s
A175: delta T1 | B175: =C173-B172 -> 102.2724831 | D175: °C
A176: delta T2 | B176: =C172-B173 -> 60 | D176: °C
A177: delta Tlm | B177: =(B175-B176)/LN(B175/B176) -> 79.26644075 | D177: °C
A178: U | B178: 100 | D178: W/m2/°C
A179: Q used | B179: =C68 -> 7005291.429 | D179: MW
A180: Q provided | C180: =B179/0.7 -> 10007559.18 | D180: MW
A181: A | B181: =C180/(B178*B177) -> 1262.521578 | D181: m2
A183: Heat exchanger 3
A185: Mass balance
A186: Component | B186: In [t/h] | C186: Out [t/h]
A187: HDO oil | B187: =C160 -> 22.58823529 | C187: =B187 -> 22.58823529
A188: Water | B188: =C161 -> 27.88235294 | C188: =B188 -> 27.88235294
A189: Gas (CO+CO2) | B189: =C162 -> 4.705882353 | C189: 4.705882353
A190: Gas (C1-C5) | B190: =C163 -> 5.117647059 | C190: 5.117647059
A191: Catalyst | B191: =C164 -> 19.41176471 | C191: 19.41176471
A192: H2 | B192: =C165 -> 4.470588235 | C192: 4.470588235
A193: Total | B193: =SUM(B187:B192) -> 84.17647059 | C193: =SUM(C187:C192) -> 84.17647059
A195: Heat balance
A196: Property | B196: Cold side (water) | C196: Warm side (PO) | D196: Unit
A197: Cp | B197: 4180 | C197: =C170 -> 2328.953598 | D197: J/kg/°C
A198: Efficiency | B198: 0.7 | C198: 0.7 | D198: -
A199: T in | B199: 20 | C199: =C173 -> 202.2724831 | D199: °C
A200: T out | B200: 80 | C200: 100 | D200: °C
A201: Mass flow | B201: =B206/(B197*(B200-B199)) -> 29.48453499 | C201: =C174 -> 21.73202614 | D201: kg/s
A202: delta T1 | B202: =C200-B199 -> 80 | D202: °C
A203: delta T2 | B203: =C199-B200 -> 122.2724831 | D203: °C
A204: delta Tlm | B204: =(B202-B203)/LN(B202/B203) -> 99.64628315 | D204: °C
A205: U | B205: 100 | D205: W/m2/°C
A206: Q used | B206: =C207/B198 -> 7394721.375 | D206: MW
A207: Q provided | C207: =C197*C201*(C199-C200) -> 5176304.963 | D207: MW
A208: A | B208: =C207/(B205*B204) -> 519.4679419 | D208: m2
A210: Cooling water
A211: Property | B211: Value | C211: Unit
A212: Hourly requirement | B212: =B201*3600/1000 -> 106.144326 | C212: t/h
A213: Annual requirement | B213: =B212*24*'Properties and Data'!B24 -> 866137.6998 | C213: t/y
A216: Liquid-gas separation
A217: Separating gases from liquid
A219: Pressure regulator
A221: Specifications and calculations
A222: Property | B222: Value | C222: Unit
A223: Mass flow | B223: =C193 -> 84.17647059 | C223: t/h
A224: Starting pressure | B224: 100 | C224: bar
A225: Ending pressure | B225: 1 | C225: bar
A227: Flash vessel
A229: Specifications and calculations
A230: Property | B230: Value | C230: Unit
A231: Liquid loss to gas | B231: 3 | C231: wt%
A232: Liquid flow | B232: =(B242+B243)*1000/3600 -> 14.01960784 | C232: kg/s
A233: Liquid density | B233: ='Properties and Data'!D4 -> 1138.8 | C233: kg/m3
A234: Catalyst flow | B234: =B246*1000/3600 -> 5.392156863 | C234: kg/s
A235: Catalyst density | B235: ='Properties and Data'!G4 -> 4692 | C235: kg/m3
A236: Volumetric flow | B236: =B232/B233+B234/B235 -> 0.01346008396 | C236: m3/s
A237: Residense time | B237: 120 | C237: s
A238: Flash volume (multiplied with 2) | B238: =B236*B237*2 -> 3.23042015 | C238: m3
A240: Mass balance
A241: Component | B241: In [t/h] | C241: Slurry [t/h] | D241: Gas [t/h]
A242: HDO oil | B242: =C187 -> 22.58823529 | C242: =B242*(100-$B$231)/100 -> 21.91058824 | D242: =B242*$B$231/100 -> 0.6776470588
... 42 more rows

Sheet CO2
A1: Transportation
A2: Parameter | B2: Fossil | C2: Grön | D2: Unit
A3: PO to ship | B3: =Stabilization!D12 -> 58.82352941 | C3: =B3 -> 58.82352941 | D3: ton/h
A4: Distance | B4: 1300 | C4: =B4 -> 1300 | D4: km
A5: Ship emissions | B5: 7 | C5: 7 | D5: g CO2/tonne-km
A6: CO2 emissions/h | B6: =B3*B4*B5/1000 -> 535.2941176 | C6: 535.2941176 | D6: kg CO2 eq/h
A8: Methanol Production
A9: Parameter | B9: Fossil | C9: Green | D9: Unit
A10: WtW emissions factor | B10: 110 | C10: 13.3 | D10: gCO2eq/MJ
A11: Energy density | B11: 19.9 | C11: 19.9 | D11: MJ/kg
A12: Methanol used | B12: =Stabilization!$C$12*1000 -> 8823.529412 | C12: =Stabilization!$C$12*1000 -> 8823.529412 | D12: kg/h
A13: Methanol MJ/h | B13: =B12*B11 -> 175588.2353 | C13: =C12*C11 -> 175588.2353 | D13: MJ/h
A14: CO2 emissions/h | B14: =B10*B13/1000 -> 19314.70588 | C14: =C10*C13/1000 -> 2335.323529 | D14: kg CO2 eq/h
A16: Natural Gas
A17: Parameter | B17: Fossil | C17: Green | D17: Unit
A18: CH4 flow | B18: ='Slurry hydrotreatment'!B97+'Slurry hydrotreatment'!C97 -> 2218.285819 | C18: =B18 -> 2218.285819 | D18: kg/h
A19: g CO2/ MJ | C19: =20/1000 -> 0.02 | D19: kg CO2/MJ
A20: kg CO2 /kg CH4 | B20: 28 | C20: =C19*48.96 -> 0.9792 | D20: kg/kg
A21: CO2 emissions/h | B21: =B18*B20 -> 62112.00294 | C21: =C18*C20 -> 2172.145474 | D21: kg CO2 eq/h
A23: Hydrogen Production
A24: Parameter | B24: Fossil | C24: Green | D24: Unit
A25: CH4 from extern source/h | B25: ='Slurry hydrotreatment'!B137 -> 0.6470588235 | C25: =B25 -> 0.6470588235 | D25: t/h
A26: CH4 kg/h | B26: =B25*1000 -> 647.0588235 | C26: =B26 -> 647.0588235 | D26: kg/h
A27: CH4 to CO2 | B27: 28 | C27: 0 | D27: kg/kg
A28: CO2 emissions/h | B28: =B26*B27 -> 18117.64706 | C28: 0 | D28: kg CO2 eq/h
A31: Total
A32: Parameter | B32: Fossil | C32: Green | D32: Unit
A33: Total CO2 emissions hourly | B33: =B6+B14+B21+B28 -> 100079.65 | C33: =B6+C14+C21+C28 -> 5042.763121 | D33: kg CO2/h
A34: Total produced PO | B34: ='Slurry hydrotreatment'!$C$294*1000 -> 20933.68303 | C34: ='Slurry hydrotreatment'!$C$294*1000 -> 20933.68303 | D34: kg/h
A35: CO2 per kg PO | B35: =B33/B34 -> 4.780795136 | C35: =C33/C34 -> 0.2408923033 | D35: kg CO2 eq/kg PO
A36: tonne CO2 per year | B36: =B33*24*340/1000 -> 816649.944 | C36: =C33*24*340 -> 41148947.07 | D36: t CO2/y

Sheet Costs summary
A1: Operational costs
A3: Personnel and administration
A5: Number of operators
A6: Unit | B6: n (workers per shift) | D6: Fossil scenario
A7: Storage tank x2 | B7: 0 | D7: Green scenario
A8: Heat exchanger x3 | B8: =0.05*3 -> 0.15 | D8: Same for both scenarios
A9: Gas Heater | B9: 0.25
A10: Reactor | B10: 0.25
A11: Flash vessel | B11: 0
A12: Centrifuge | B12: 0.1
A13: Settling tank | B13: 0
A14: Total operators/shift | B14: =SUM(B7:B13) -> 0.75
A15: Total shifts | B15: 5
A16: Total operators | B16: 5
A18: Costs personell and administration
A19: Item | B19: Salary [SEK/y]
A20: Shift workers | B20: ='Properties and Data'!B21*B16*12 -> 1800000
A21: Supervisors | B21: =B20*0.15 -> 270000
A22: Laboratory work | B22: =0.15*B20 -> 270000
A23: Overhead staff | B23: =0.7*B20+0.7*B21 -> 1449000
A24: Administration | B24: =0.25*B23 -> 362250
A25: Total costs personell | B25: =SUM(B20:B24) -> 4151250
A26: License fees | B26: =0.03*B25 -> 124537.5
A28: Consumables and utilities
A30: Raw material, reactants, catalyst
A31: Feedstock | B31: Annual requirement [t/y] | C31: Cost per tonne [SEK/tonne] | D31: Annual cost [SEK/y] | E31: Cost per tonne GREEN [SEK/t] | F31: Annual cost Green [SEK/y]
A32: Raw pyrolysis oil | B32: =Stabilization!B12*24*'Properties and Data'!B24 -> 408000 | C32: ='Properties and Data'!B9 -> 6000 | D32: =B32*C32 -> 2448000000 | E32: =Table4[[#This Row],[Cost per tonne '[SEK/tonne']]] -> 6000 | F32: =Table4[[#This Row],[Annual requirement '[t/y']]]*Table4[[#This Row],[Cost per tonne GREEN '[SEK/t']]] -> 2448000000
A33: Methanol | B33: =Stabilization!C12*24*'Properties and Data'!B24 -> 72000 | C33: ='Properties and Data'!B10 -> 7143.75 | D33: =B33*C33 -> 514350000 | E33: ='Properties and Data'!B11 -> 13635.99 | F33: =Table4[[#This Row],[Annual requirement '[t/y']]]*Table4[[#This Row],[Cost per tonne GREEN '[SEK/t']]] -> 981791280
A34: Hydrogen from slurry CH4 | B34: ='Slurry hydrotreatment'!B28 -> 15600 | C34: ='Slurry hydrotreatment'!C28 -> 10858.5 | D34: =B34*C34 -> 169392600 | E34: =Table4[[#This Row],[Cost per tonne '[SEK/tonne']]] -> 10858.5 | F34: =Table4[[#This Row],[Annual requirement '[t/y']]]*Table4[[#This Row],[Cost per tonne GREEN '[SEK/t']]] -> 169392600
A35: Hydrogen from other source | B35: ='Slurry hydrotreatment'!B29 -> 2640 | C35: ='Properties and Data'!B14 -> 42976.8 | D35: 113458752 | E35: ='Properties and Data'!B15 -> 63360 | F35: =Table4[[#This Row],[Annual requirement '[t/y']]]*Table4[[#This Row],[Cost per tonne GREEN '[SEK/t']]] -> 167270400
A36: Catalyst | B36: ='Slurry hydrotreatment'!B150 -> 15840 | C36: ='Properties and Data'!B12 -> 21120 | D36: =B36*C36 -> 334540800 | E36: =Table4[[#This Row],[Cost per tonne '[SEK/tonne']]] -> 21120 | F36: =Table4[[#This Row],[Annual requirement '[t/y']]]*Table4[[#This Row],[Cost per tonne GREEN '[SEK/t']]] -> 334540800
B37: Total costs raw material, reactants & catalyst | D37: =SUM(D32:D36) -> 3579742152 | F37: =SUM(Table4[Annual cost Green '[SEK/y']]) -> 4100995080
A39: Utilities
A40: Utility | B40: Annual requirement [t/y] | C40: Cost per tonne [SEK/tonne] | D40: Annual cost [SEK/y] | E40: Cost per tonne GREEN [SEK/t] | F40: Annual cost Green [SEK/y]
A41: Natural gas | B41: ='Slurry hydrotreatment'!B98+'Slurry hydrotreatment'!C98 -> 18101.21228 | C41: ='Properties and Data'!B17 -> 5751.576 | D41: =B41*C41 -> 104110498.1 | E41: ='Properties and Data'!B18 -> 16000 | F41: =Table448[[#This Row],[Annual requirement '[t/y']]]*Table448[[#This Row],[Cost per tonne GREEN '[SEK/t']]] -> 289619396.5
A42: Cooling water | B42: ='Slurry hydrotreatment'!B213 -> 866137.6998 | C42: ='Properties and Data'!B19 -> 0.2 | D42: =B42*C42 -> 173227.54 | E42: =Table448[[#This Row],[Cost per tonne '[SEK/tonne']]] -> 0.2 | F42: =Table448[[#This Row],[Annual requirement '[t/y']]]*Table448[[#This Row],[Cost per tonne GREEN '[SEK/t']]] -> 173227.54
B43: Total costs utilities | D43: =SUM(D41:D42) -> 104283725.7 | F43: =SUM(Table448[Annual cost Green '[SEK/y']]) -> 289792624.1
A46: Electricity
A47: Unit | B47: Annual requirement [MWh/y] | C47: Cost per MWh [SEK/MWh] | D47: Annual cost [SEK/y]
A48: Heating Storage tank PO site | B48: ='Storage and transportation'!B47 -> 1523.634238 | C48: ='Properties and Data'!B13 -> 386 | D48: =B48*C48 -> 588122.8159
A49: Heating Storage tank Refinery | B49: ='Storage and transportation'!B87 -> 1523.634238 | C49: =C48 -> 386 | D49: =B49*C49 -> 588122.8159
A50: Sedimenation centrifuge | B50: ='Slurry hydrotreatment'!B275 -> 216.4701593 | C50: =C49 -> 386 | D50: 83557.4815
C51: Total costs electricity | D51: =SUM(D48:D50) -> 1259803.113
A53: Transportation
A54: Transportation | B54: Annual requirement | C54: Cost per tonne [SEK/t] | D54: Annual cost [SEK/y]
A55: Ship | B55: ='Storage and transportation'!B57 -> 480000 | C55: ='Storage and transportation'!B58 -> 633.6 | D55: =Table1[[#This Row],[Annual requirement]]*Table1[[#This Row],[Cost per tonne '[SEK/t']]] -> 304128000
C56: Total costs transportation | D56: =SUM(D55) -> 304128000
A57: Irregular costs
A58: Item | B58: Cost [SEK] | C58: Frequency (every x years) | D58: Number of times during lifetime | E58: Avg cost/year [SEK/y]
A59: Thermal oil | B59: ='Slurry hydrotreatment'!B76 -> 13172483.11 | C59: 5 | D59: ='Properties and Data'!$B$31/C59+1 -> 4 | E59: =B59*D59/'Properties and Data'!$B$31 -> 3512662.162
D60: Total irregular costs | E60: =SUM(Table2[Avg cost/year '[SEK/y']]) -> 3512662.162
A62: Equipment spare items and maintenance
A64: Spare items and maintenance
A65: Item | B65: Cost [$2024] | C65: Cost [SEK2024]
A66: Annual maintenance | B66: =0.05*D103 -> 932571.9966 | C66: =B66*'Properties and Data'!$B$36 -> 9847960.284
A67: Spare items | B67: =0.15*B66 -> 139885.7995 | C67: =B67*'Properties and Data'!$B$36 -> 1477194.043
A68: Annual cost spare items | B68: =B67*'Properties and Data'!B32 -> 23922.85713 | C68: =B68*'Properties and Data'!$B$36 -> 252625.3713
B69: Total annual equipment costs | C69: =C66+C68 -> 10100585.66
A71: Total operating costs
A72: Item | B72: Annual cost fossil [SEK/y] | C72: Annual cost green [SEK/y]
A73: Personell and administration | B73: =B25+B26 -> 4275787.5 | C73: =Table36[[#This Row],[Annual cost fossil '[SEK/y']]] -> 4275787.5
A74: Raw material, reactants, catalyst | B74: =D37 -> 3579742152 | C74: =F37 -> 4100995080
A75: =A39 -> Utilities | B75: =D43 -> 104283725.7 | C75: =F43 -> 289792624.1
A76: =A46 -> Electricity | B76: =D51 -> 1259803.113 | C76: =Table36[[#This Row],[Annual cost fossil '[SEK/y']]] -> 1259803.113
A77: =A53 -> Transportation | B77: =D56 -> 304128000 | C77: =Table36[[#This Row],[Annual cost fossil '[SEK/y']]] -> 304128000
A78: Spare items, maintenance, irregular costs | B78: =C69+E60 -> 13613247.82 | C78: =Table36[[#This Row],[Annual cost fossil '[SEK/y']]] -> 13613247.82
A79: Total annual operating costs | B79: =SUM(B73:B78) -> 4007302716 | C79: =SUM(C73:C78) -> 4714064543
A82: Oil price
A83: Property | B83: Fossil production | C83: Green production | D83: Unit
A84: Oil produced per year | B84: ='Slurry hydrotreatment'!C294*24*'Properties and Data'!B24 -> 170818.8535 | C84: =B84 -> 170818.8535 | D84: t/year
A85: Price per ton oil | B85: =B79/B84 -> 23459.37017 | C85: =C79/C84 -> 27596.86326 | D85: SEK/t
A86: Price per kg oil | B86: =B85/1000 -> 23.45937017 | C86: =C85/1000 -> 27.59686326 | D86: SEK/kg
A89: Capital costs
A92: Equipment
A93: Unit | B93: Cbm [$2004] | C93: Grass Root Plant Cost [$2004] | D93: Grass Root Plant Cost [$2024] | E93: Grass Root Plant Cost [SEK2024]
A94: Storage tanks | B94: ='Storage and transportation'!I7 -> 420000 | C94: =Table38[[#This Row],[Cbm '[$2004']]]*'Properties and Data'!B28*'Properties and Data'!B29 -> 603750 | D94: =Table38[[#This Row],[Grass Root Plant Cost '[$2004']]]*'Properties and Data'!B27 -> 1053328.596 | E94: =D94*'Properties and Data'!$B$36 -> 11123149.98
A95: HEX1 | B95: ='Slurry hydrotreatment'!Q6 -> 140000 | C95: =Table38[[#This Row],[Cbm '[$2004']]]*'Properties and Data'!B28*'Properties and Data'!B29 -> 201250 | D95: =C95*'Properties and Data'!$B$27 -> 351109.5321 | E95: =D95*'Properties and Data'!$B$36 -> 3707716.659
A96: Gas heater | B96: ='Slurry hydrotreatment'!Q7 -> 3510000 | C96: =B96*'Properties and Data'!$B$28*'Properties and Data'!$B$29 -> 5045625 | D96: =C96*'Properties and Data'!$B$27 -> 8802817.556 | E96: =D96*'Properties and Data'!$B$36 -> 92957753.39
A97: Slurry reactor | B97: ='Slurry hydrotreatment'!Q8 -> 2200000 | C97: =B97*'Properties and Data'!$B$28*'Properties and Data'!$B$29 -> 3162500 | D97: =C97*'Properties and Data'!$B$27 -> 5517435.505 | E97: =D97*'Properties and Data'!$B$36 -> 58264118.93
A98: HEX 2 | B98: ='Slurry hydrotreatment'!Q9 -> 270000 | C98: =B98*'Properties and Data'!$B$28*'Properties and Data'!$B$29 -> 388125 | D98: =C98*'Properties and Data'!$B$27 -> 677139.812 | E98: =D98*'Properties and Data'!$B$36 -> 7150596.415
A99: HEX 3 | B99: ='Slurry hydrotreatment'!Q10 -> 157500 | C99: =B99*'Properties and Data'!$B$28*'Properties and Data'!$B$29 -> 226406.25 | D99: =C99*'Properties and Data'!$B$27 -> 394998.2237 | E99: =D99*'Properties and Data'!$B$36 -> 4171181.242
A100: Flash | B100: ='Slurry hydrotreatment'!Q11 -> 42500 | C100: =B100*'Properties and Data'!$B$28*'Properties and Data'!$B$29 -> 61093.75 | D100: =C100*'Properties and Data'!$B$27 -> 106586.8223 | E100: =D100*'Properties and Data'!$B$36 -> 1125556.843
A101: Sedimentation disk centrifuge | B101: ='Slurry hydrotreatment'!Q12 -> 612000 | C101: =B101*'Properties and Data'!$B$28*'Properties and Data'!$B$29 -> 879750 | D101: =C101*'Properties and Data'!$B$27 -> 1534850.24 | E101: =D101*'Properties and Data'!$B$36 -> 16208018.54
A102: Decanter | B102: ='Slurry hydrotreatment'!Q13 -> 85000 | C102: =B102*'Properties and Data'!$B$28*'Properties and Data'!$B$29 -> 122187.5 | D102: =C102*'Properties and Data'!$B$27 -> 213173.6445 | E102: =D102*'Properties and Data'!$B$36 -> 2251113.686
A103: Total | B103: =SUM(B94:B102) -> 7437000 | C103: =SUM(C94:C102) -> 10690687.5 | D103: =SUM(D94:D102) -> 18651439.93 | E103: =SUM(E94:E102) -> 196959205.7
